[Event "Titled Tuesday Blitz July 11 Early 2023"]
[White "Arat, Ufuk Sezen"]
[Black "Nunez V, Gustavo Eduardo"]
[WhiteFideId "6309089"]
[BlackFideId "4403690"]
[WhiteElo "2577"]
[BlackElo "2461"]
[Result "1-0"]
[Round "11"]
[TimeControl "180+2"]
[Date "2023.07.11"]
[WhiteClock "0:00:54"]
[BlackClock "0:00:05"]
[Board "68"]

1. e4 {[%clk 0:02:56]}  c5 {[%clk 0:03:00]} 2. Nf3 {[%clk 0:02:56]}  Nc6 {[%clk 0:02:59]} 3. d4 {[%clk 0:02:56]}  cxd4 {[%clk 0:03:00]} 4. Nxd4 {[%clk 0:02:57]}  e5 {[%clk 0:03:01]} 5. Nb5 {[%clk 0:02:57]}  a6 {[%clk 0:03:00]} 6. Nd6+ {[%clk 0:02:56]}  Bxd6 {[%clk 0:03:01]} 7. Qxd6 {[%clk 0:02:57]}  Qf6 {[%clk 0:03:02]} 8. Qd1 {[%clk 0:02:57]}  Qg6 {[%clk 0:03:02]} 9. Nc3 {[%clk 0:02:57]}  Nge7 {[%clk 0:03:02]} 10. Be3 {[%clk 0:02:57]}  d6 {[%clk 0:03:01]} 11. f3 {[%clk 0:02:58]}  Be6 {[%clk 0:03:01]} 12. Qd2 {[%clk 0:02:58]}  Rd8 {[%clk 0:03:01]} 13. O-O-O {[%clk 0:02:59]}  f5 {[%clk 0:02:59]} 14. Bd3 {[%clk 0:02:58]}  O-O {[%clk 0:02:56]} 15. exf5 {[%clk 0:02:57]}  Bxf5 {[%clk 0:02:55]} 16. Bb6 {[%clk 0:02:56]}  Rd7 {[%clk 0:02:52]} 17. Ne4 {[%clk 0:02:54]}  Kh8 {[%clk 0:02:38]} 18. g4 {[%clk 0:02:54]}  Bxe4 {[%clk 0:02:36]} 19. Bxe4 {[%clk 0:02:55]}  Qf7 {[%clk 0:02:35]} 20. Bc5 {[%clk 0:02:44]}  d5 {[%clk 0:02:32]} 21. Bd3 {[%clk 0:02:41]}  Rc8 {[%clk 0:02:15]} 22. Rhe1 {[%clk 0:02:37]}  Ng6 {[%clk 0:02:08]} 23. Bf5 {[%clk 0:02:31]}  Nf4 {[%clk 0:02:05]} 24. Bxd7 {[%clk 0:02:31]}  Qxd7 {[%clk 0:02:06]} 25. Rxe5 {[%clk 0:02:21]}  Nxe5 {[%clk 0:01:57]} 26. Qxf4 {[%clk 0:02:22]}  Ng6 {[%clk 0:01:55]} 27. Qd4 {[%clk 0:02:03]}  Qf7 {[%clk 0:01:24]} 28. Qxd5 {[%clk 0:02:00]}  Qf4+ {[%clk 0:01:24]} 29. Kb1 {[%clk 0:01:59]}  h6 {[%clk 0:01:25]} 30. Qe6 {[%clk 0:01:55]}  Rxc5 {[%clk 0:01:09]} 31. Rd8+ {[%clk 0:01:32]}  Nf8 {[%clk 0:00:55]} 32. Qe7 {[%clk 0:01:33]}  Re5 {[%clk 0:00:35]} 33. Rxf8+ {[%clk 0:01:24]}  Kh7 {[%clk 0:00:35]} 34. Rxf4 {[%clk 0:01:22]}  Rxe7 {[%clk 0:00:35]} 35. a4 {[%clk 0:01:22]}  Re1+ {[%clk 0:00:34]} 36. Ka2 {[%clk 0:01:22]}  Re2 {[%clk 0:00:35]} 37. h4 {[%clk 0:01:19]}  Rxc2 {[%clk 0:00:34]} 38. Rf7 {[%clk 0:01:20]}  b5 {[%clk 0:00:26]} 39. a5 {[%clk 0:01:20]}  Rc4 {[%clk 0:00:21]} 40. b3 {[%clk 0:01:18]}  Rc6 {[%clk 0:00:15]} 41. h5 {[%clk 0:01:17]}  Kg8 {[%clk 0:00:11]} 42. Rf5 {[%clk 0:01:17]}  g6 {[%clk 0:00:09]} 43. hxg6 {[%clk 0:01:17]}  Kg7 {[%clk 0:00:09]} 44. Ka3 {[%clk 0:01:17]}  Kxg6 {[%clk 0:00:09]} 45. Kb4 {[%clk 0:01:17]}  Re6 {[%clk 0:00:08]} 46. f4 {[%clk 0:01:16]}  Re4+ {[%clk 0:00:05]} 47. Kc5 {[%clk 0:01:17]}  Re3 {[%clk 0:00:05]} 48. b4 {[%clk 0:01:17]}  Rc3+ {[%clk 0:00:04]} 49. Kb6 {[%clk 0:01:17]}  Rc4 {[%clk 0:00:05]} 50. Kxa6 {[%clk 0:01:17]}  Rxb4 {[%clk 0:00:06]} 51. Rxb5 {[%clk 0:01:17]}  Rxf4 {[%clk 0:00:06]} 52. Rb8 {[%clk 0:00:52]}  Rxg4 {[%clk 0:00:06]} 53. Rg8+ {[%clk 0:00:53]}  Kf5 {[%clk 0:00:07]} 54. Rxg4 {[%clk 0:00:54]}  Kxg4 {[%clk 0:00:07]} 55. Kb5 {[%clk 0:00:49]}  h5 {[%clk 0:00:08]} 56. a6 {[%clk 0:00:50]}  h4 {[%clk 0:00:08]} 57. a7 {[%clk 0:00:50]}  Kg3 {[%clk 0:00:07]} 58. a8=Q {[%clk 0:00:51]}  Kh2 {[%clk 0:00:08]} 59. Qa2+ {[%clk 0:00:50]}  Kh1 {[%clk 0:00:08]} 60. Qb1+ {[%clk 0:00:50]}  Kh2 {[%clk 0:00:08]} 61. Qc2+ {[%clk 0:00:50]}  Kh1 {[%clk 0:00:08]} 62. Qd1+ {[%clk 0:00:51]}  Kh2 {[%clk 0:00:08]} 63. Qe2+ {[%clk 0:00:51]}  Kh3 {[%clk 0:00:08]} 64. Qf3+ {[%clk 0:00:51]}  Kh2 {[%clk 0:00:09]} 65. Kc4 {[%clk 0:00:51]}  h3 {[%clk 0:00:09]} 66. Qg4 {[%clk 0:00:51]}  Kh1 {[%clk 0:00:09]} 67. Qxh3+ {[%clk 0:00:52]}  Kg1 {[%clk 0:00:10]} 68. Qg3+ {[%clk 0:00:52]}  Kf1 {[%clk 0:00:10]} 69. Qh2 {[%clk 0:00:52]}  Ke1 {[%clk 0:00:10]} 70. Kd3 {[%clk 0:00:53]}  Kf1 {[%clk 0:00:10]} 71. Ke3 {[%clk 0:00:53]}  Ke1 {[%clk 0:00:05]} 72. Qe2# {[%clk 0:00:54]} 1-0


[Site "https://www.chess.com"]

[Event "Titled Tuesday Blitz July 11 Early 2023"]
[White "Borrmann, Laurenz"]
[Black "Goswami, Vedant"]
[WhiteFideId "312187930"]
[BlackFideId "5003725"]
[WhiteElo "2568"]
[BlackElo "2413"]
[Result "1-0"]
[Round "11"]
[TimeControl "180+2"]
[Date "2023.07.11"]
[WhiteClock "0:00:08"]
[BlackClock "0:00:00"]
[Board "69"]

1. d4 {[%clk 0:02:58]}  a6 {[%clk 0:02:58]} 2. e4 {[%clk 0:02:56]}  e6 {[%clk 0:02:58]} 3. c4 {[%clk 0:02:51]}  d6 {[%clk 0:02:54]} 4. Nc3 {[%clk 0:02:43]}  Nd7 {[%clk 0:02:52]} 5. f4 {[%clk 0:02:36]}  g6 {[%clk 0:02:50]} 6. Nf3 {[%clk 0:02:34]}  Bg7 {[%clk 0:02:49]} 7. e5 {[%clk 0:02:22]}  Ne7 {[%clk 0:02:46]} 8. Ne4 {[%clk 0:02:21]}  d5 {[%clk 0:02:38]} 9. Ng3 {[%clk 0:02:15]}  dxc4 {[%clk 0:02:36]} 10. Bxc4 {[%clk 0:02:15]}  Nb6 {[%clk 0:02:34]} 11. Bb3 {[%clk 0:02:15]}  Nbd5 {[%clk 0:02:30]} 12. O-O {[%clk 0:02:14]}  Nf5 {[%clk 0:02:25]} 13. Nxf5 {[%clk 0:02:10]}  exf5 {[%clk 0:02:24]} 14. Bd2 {[%clk 0:02:01]}  Be6 {[%clk 0:02:22]} 15. Rc1 {[%clk 0:02:01]}  c6 {[%clk 0:02:21]} 16. Ng5 {[%clk 0:01:59]}  Bf8 {[%clk 0:02:13]} 17. Nxe6 {[%clk 0:01:55]}  fxe6 {[%clk 0:02:13]} 18. Qf3 {[%clk 0:01:45]}  Qb6 {[%clk 0:02:10]} 19. Be3 {[%clk 0:01:41]}  Rd8 {[%clk 0:02:09]} 20. Bxd5 {[%clk 0:01:40]}  Rxd5 {[%clk 0:02:08]} 21. b3 {[%clk 0:01:40]}  Ba3 {[%clk 0:02:04]} 22. Rc4 {[%clk 0:01:40]}  h5 {[%clk 0:02:02]} 23. h3 {[%clk 0:01:30]}  Kf7 {[%clk 0:01:53]} 24. Rd1 {[%clk 0:01:28]}  Rhd8 {[%clk 0:01:37]} 25. g4 {[%clk 0:01:28]}  hxg4 {[%clk 0:01:35]} 26. hxg4 {[%clk 0:01:29]}  Rh8 {[%clk 0:01:34]} 27. Kg2 {[%clk 0:01:22]}  Be7 {[%clk 0:01:27]} 28. Rh1 {[%clk 0:01:13]}  Rdd8 {[%clk 0:01:22]} 29. Rcc1 {[%clk 0:01:05]}  Qa5 {[%clk 0:01:22]} 30. a4 {[%clk 0:01:03]}  Rdg8 {[%clk 0:01:04]} 31. Bf2 {[%clk 0:00:58]}  fxg4 {[%clk 0:00:54]} 32. Qxg4 {[%clk 0:00:56]}  Qd5+ {[%clk 0:00:55]} 33. Qf3 {[%clk 0:00:55]}  Qxf3+ {[%clk 0:00:35]} 34. Kxf3 {[%clk 0:00:56]}  Kg7 {[%clk 0:00:28]} 35. Kg4 {[%clk 0:00:53]}  Rxh1 {[%clk 0:00:25]} 36. Rxh1 {[%clk 0:00:54]}  Rh8 {[%clk 0:00:25]} 37. Rxh8 {[%clk 0:00:46]}  Kxh8 {[%clk 0:00:25]} 38. Bh4 {[%clk 0:00:38]}  Bb4 {[%clk 0:00:17]} 39. Bd8 {[%clk 0:00:34]}  Kg7 {[%clk 0:00:17]} 40. Bb6 {[%clk 0:00:33]}  Kf7 {[%clk 0:00:15]} 41. Kf3 {[%clk 0:00:31]}  Bd2 {[%clk 0:00:15]} 42. Ke4 {[%clk 0:00:31]}  Bc1 {[%clk 0:00:14]} 43. Bd8 {[%clk 0:00:29]}  Bd2 {[%clk 0:00:14]} 44. Bg5 {[%clk 0:00:29]}  Bc1 {[%clk 0:00:14]} 45. Kd3 {[%clk 0:00:29]}  Ba3 {[%clk 0:00:12]} 46. Kc4 {[%clk 0:00:29]}  Bf8 {[%clk 0:00:10]} 47. a5 {[%clk 0:00:18]}  Ba3 {[%clk 0:00:08]} 48. b4 {[%clk 0:00:18]}  Bb2 {[%clk 0:00:08]} 49. Bh4 {[%clk 0:00:15]}  Ke8 {[%clk 0:00:07]} 50. Bf2 {[%clk 0:00:12]}  Kd7 {[%clk 0:00:07]} 51. Kb3 {[%clk 0:00:10]}  Bc1 {[%clk 0:00:07]} 52. Bg3 {[%clk 0:00:09]}  Be3 {[%clk 0:00:07]} 53. Kc4 {[%clk 0:00:09]}  Kc7 {[%clk 0:00:07]} 54. Kd3 {[%clk 0:00:09]}  Bg1 {[%clk 0:00:06]} 55. Be1 {[%clk 0:00:10]}  Bh2 {[%clk 0:00:05]} 56. Ke3 {[%clk 0:00:09]}  Kd7 {[%clk 0:00:05]} 57. Bf2 {[%clk 0:00:08]}  Kc7 {[%clk 0:00:03]} 58. Kf3 {[%clk 0:00:08]}  Kd7 {[%clk 0:00:03]} 59. Be3 {[%clk 0:00:08]}  Kc7 {[%clk 0:00:00]} 60. Kg2 {[%clk 0:00:08]} 1-0


[Site "https://www.chess.com"]

[Event "Titled Tuesday Blitz July 11 Early 2023"]
[White "Fiorito, Francisco"]
[Black "a-z30"]
[WhiteFideId "180165"]
[WhiteElo "2549"]
[BlackElo "2415"]
[Result "1-0"]
[Round "11"]
[TimeControl "180+2"]
[Date "2023.07.11"]
[WhiteClock "0:00:52"]
[BlackClock "0:00:00"]
[Board "70"]

1. d4 {[%clk 0:03:00]}  Nf6 {[%clk 0:02:59]} 2. Nc3 {[%clk 0:03:00]}  d6 {[%clk 0:02:55]} 3. e4 {[%clk 0:02:59]}  g6 {[%clk 0:02:54]} 4. Be3 {[%clk 0:02:59]}  Bg7 {[%clk 0:02:54]} 5. Qd2 {[%clk 0:03:00]}  O-O {[%clk 0:02:54]} 6. O-O-O {[%clk 0:02:55]}  Nc6 {[%clk 0:02:52]} 7. Bh6 {[%clk 0:02:53]}  e5 {[%clk 0:02:50]} 8. Bxg7 {[%clk 0:02:52]}  Kxg7 {[%clk 0:02:50]} 9. Nf3 {[%clk 0:02:51]}  Bg4 {[%clk 0:02:48]} 10. d5 {[%clk 0:02:37]}  Bxf3 {[%clk 0:02:47]} 11. gxf3 {[%clk 0:02:38]}  Nd4 {[%clk 0:02:47]} 12. f4 {[%clk 0:02:38]}  Nh5 {[%clk 0:02:44]} 13. fxe5 {[%clk 0:02:36]}  dxe5 {[%clk 0:02:44]} 14. h4 {[%clk 0:02:33]}  Qf6 {[%clk 0:02:38]} 15. Ne2 {[%clk 0:02:32]}  Nxe2+ {[%clk 0:02:30]} 16. Bxe2 {[%clk 0:02:32]}  Nf4 {[%clk 0:02:29]} 17. h5 {[%clk 0:02:28]}  Rad8 {[%clk 0:01:52]} 18. Bg4 {[%clk 0:02:25]}  c6 {[%clk 0:01:45]} 19. d6 {[%clk 0:02:23]}  h6 {[%clk 0:01:14]} 20. f3 {[%clk 0:02:20]}  g5 {[%clk 0:01:08]} 21. Bf5 {[%clk 0:02:18]}  Ne6 {[%clk 0:01:02]} 22. c3 {[%clk 0:02:16]}  Rd7 {[%clk 0:01:00]} 23. Qe3 {[%clk 0:02:06]}  b6 {[%clk 0:00:56]} 24. Rd2 {[%clk 0:02:06]}  Rfd8 {[%clk 0:00:56]} 25. Rhd1 {[%clk 0:02:07]}  Nf4 {[%clk 0:00:48]} 26. Bxd7 {[%clk 0:02:05]}  Rxd7 {[%clk 0:00:49]} 27. a4 {[%clk 0:02:04]}  Nxh5 {[%clk 0:00:45]} 28. a5 {[%clk 0:02:02]}  c5 {[%clk 0:00:45]} 29. axb6 {[%clk 0:02:02]}  axb6 {[%clk 0:00:45]} 30. Qd3 {[%clk 0:02:03]}  Nf4 {[%clk 0:00:13]} 31. Qb5 {[%clk 0:02:03]}  Qd8 {[%clk 0:00:13]} 32. Qc6 {[%clk 0:01:55]}  h5 {[%clk 0:00:12]} 33. b4 {[%clk 0:01:55]}  cxb4 {[%clk 0:00:10]} 34. cxb4 {[%clk 0:01:56]}  h4 {[%clk 0:00:10]} 35. Rc2 {[%clk 0:01:52]}  h3 {[%clk 0:00:09]} 36. Qb5 {[%clk 0:01:51]}  Ra7 {[%clk 0:00:04]} 37. Qxe5+ {[%clk 0:01:50]}  Qf6 {[%clk 0:00:03]} 38. Qxf6+ {[%clk 0:01:01]}  Kxf6 {[%clk 0:00:04]} 39. e5+ {[%clk 0:01:02]}  Ke6 {[%clk 0:00:04]} 40. Rc7 {[%clk 0:01:02]}  Ra1+ {[%clk 0:00:03]} 41. Kc2 {[%clk 0:01:03]}  Rxd1 {[%clk 0:00:04]} 42. Re7+ {[%clk 0:01:02]}  Kf5 {[%clk 0:00:02]} 43. Rxf7+ {[%clk 0:01:00]}  Kg6 {[%clk 0:00:02]} 44. Rf6+ {[%clk 0:00:58]}  Kg7 {[%clk 0:00:00]} 45. Re6 {[%clk 0:00:52]} 1-0


[Site "https://www.chess.com"]

[Event "Titled Tuesday Blitz July 11 Early 2023"]
[White "Haitin, Ilja"]
[Black "Hajiyev, Kanan"]
[WhiteFideId "4501764"]
[BlackFideId "13404148"]
[WhiteElo "2400"]
[BlackElo "2544"]
[Result "1-0"]
[Round "11"]
[TimeControl "180+2"]
[Date "2023.07.11"]
[WhiteClock "0:02:13"]
[BlackClock "0:00:00"]
[Board "71"]

1. Nf3 {[%clk 0:03:00]}  d5 {[%clk 0:02:58]} 2. e3 {[%clk 0:03:00]}  c5 {[%clk 0:02:58]} 3. b3 {[%clk 0:03:01]}  Nc6 {[%clk 0:02:58]} 4. Bb2 {[%clk 0:03:00]}  Nf6 {[%clk 0:02:58]} 5. Bb5 {[%clk 0:03:00]}  Qc7 {[%clk 0:02:56]} 6. O-O {[%clk 0:02:58]}  Bg4 {[%clk 0:02:55]} 7. h3 {[%clk 0:02:57]}  Bd7 {[%clk 0:02:53]} 8. d3 {[%clk 0:02:57]}  Nb8 {[%clk 0:02:42]} 9. Bxd7+ {[%clk 0:02:56]}  Nbxd7 {[%clk 0:02:43]} 10. Nbd2 {[%clk 0:02:56]}  g6 {[%clk 0:02:33]} 11. e4 {[%clk 0:02:55]}  d4 {[%clk 0:02:14]} 12. c3 {[%clk 0:02:49]}  dxc3 {[%clk 0:02:08]} 13. Bxc3 {[%clk 0:02:50]}  Bg7 {[%clk 0:02:07]} 14. d4 {[%clk 0:02:47]}  cxd4 {[%clk 0:01:36]} 15. Bxd4 {[%clk 0:02:48]}  O-O {[%clk 0:01:34]} 16. Rc1 {[%clk 0:02:47]}  Qa5 {[%clk 0:01:34]} 17. Nc4 {[%clk 0:02:44]}  Qxa2 {[%clk 0:01:29]} 18. Ra1 {[%clk 0:02:44]}  Qxa1 {[%clk 0:01:15]} 19. Qxa1 {[%clk 0:02:45]}  Nh5 {[%clk 0:00:55]} 20. Bxg7 {[%clk 0:02:44]}  Nxg7 {[%clk 0:00:56]} 21. Rd1 {[%clk 0:02:42]}  Nc5 {[%clk 0:00:55]} 22. Qb1 {[%clk 0:02:38]}  Nge6 {[%clk 0:00:53]} 23. Ne3 {[%clk 0:02:37]}  Rfd8 {[%clk 0:00:50]} 24. Nd5 {[%clk 0:02:36]}  Re8 {[%clk 0:00:45]} 25. Nd4 {[%clk 0:02:34]}  Rac8 {[%clk 0:00:35]} 26. Nxe6 {[%clk 0:02:33]}  Nxe6 {[%clk 0:00:36]} 27. g3 {[%clk 0:02:30]}  Rc5 {[%clk 0:00:25]} 28. Kg2 {[%clk 0:02:30]}  a5 {[%clk 0:00:24]} 29. b4 {[%clk 0:02:28]}  Rb5 {[%clk 0:00:22]} 30. Qd3 {[%clk 0:02:24]}  Rxb4 {[%clk 0:00:12]} 31. Nxb4 {[%clk 0:02:23]}  axb4 {[%clk 0:00:13]} 32. Qb5 {[%clk 0:02:23]}  Rc8 {[%clk 0:00:10]} 33. Qxb4 {[%clk 0:02:20]}  Rc7 {[%clk 0:00:10]} 34. Qb6 {[%clk 0:02:18]}  Kg7 {[%clk 0:00:10]} 35. h4 {[%clk 0:02:17]}  h5 {[%clk 0:00:10]} 36. Rd5 {[%clk 0:02:15]}  Kf6 {[%clk 0:00:00]} 37. Qb2+ {[%clk 0:02:13]} 1-0


[Site "https://www.chess.com"]

[Event "Titled Tuesday Blitz July 11 Early 2023"]
[White "Atanasov, Radislav"]
[Black "Ahmad, Khagan"]
[WhiteFideId "2901471"]
[BlackFideId "13431552"]
[WhiteElo "2251"]
[BlackElo "2617"]
[Result "1-0"]
[Round "11"]
[TimeControl "180+2"]
[Date "2023.07.11"]
[WhiteClock "0:01:54"]
[BlackClock "0:00:23"]
[Board "72"]

1. e4 {[%clk 0:03:00]}  c5 {[%clk 0:02:58]} 2. c3 {[%clk 0:02:48]}  Nf6 {[%clk 0:02:54]} 3. e5 {[%clk 0:02:44]}  Nd5 {[%clk 0:02:53]} 4. d4 {[%clk 0:02:44]}  cxd4 {[%clk 0:02:51]} 5. Nf3 {[%clk 0:02:43]}  e6 {[%clk 0:02:48]} 6. cxd4 {[%clk 0:02:42]}  Nc6 {[%clk 0:02:48]} 7. a3 {[%clk 0:02:39]}  d6 {[%clk 0:02:47]} 8. Bd3 {[%clk 0:02:37]}  Be7 {[%clk 0:02:44]} 9. O-O {[%clk 0:02:37]}  O-O {[%clk 0:02:43]} 10. Re1 {[%clk 0:02:37]}  a6 {[%clk 0:02:40]} 11. Qe2 {[%clk 0:02:33]}  b5 {[%clk 0:02:30]} 12. Qc2 {[%clk 0:02:32]}  Bb7 {[%clk 0:02:23]} 13. Bxh7+ {[%clk 0:02:31]}  Kh8 {[%clk 0:02:24]} 14. Be4 {[%clk 0:02:28]}  Rc8 {[%clk 0:02:09]} 15. Qe2 {[%clk 0:02:28]}  Na5 {[%clk 0:01:23]} 16. Ng5 {[%clk 0:02:20]}  g6 {[%clk 0:01:13]} 17. Qg4 {[%clk 0:02:02]}  Bxg5 {[%clk 0:00:33]} 18. Bxg5 {[%clk 0:01:59]}  Qb6 {[%clk 0:00:25]} 19. Qh4+ {[%clk 0:01:57]}  Kg8 {[%clk 0:00:23]} 20. Bxd5 {[%clk 0:01:54]} 1-0


[Site "https://www.chess.com"]

[Event "Titled Tuesday Blitz July 11 Early 2023"]
[White "Fiorito, Joaquin"]
[Black "Brunner, Nicolas"]
[WhiteFideId "180173"]
[BlackFideId "620246"]
[WhiteElo "2604"]
[BlackElo "2493"]
[Result "1-0"]
[Round "11"]
[TimeControl "180+2"]
[Date "2023.07.11"]
[WhiteClock "0:00:12"]
[BlackClock "0:00:03"]
[Board "73"]

1. d4 {[%clk 0:03:00]}  Nf6 {[%clk 0:02:59]} 2. Nc3 {[%clk 0:03:01]}  d5 {[%clk 0:02:54]} 3. Bf4 {[%clk 0:03:02]}  Bf5 {[%clk 0:02:52]} 4. f3 {[%clk 0:03:02]}  h6 {[%clk 0:02:51]} 5. g4 {[%clk 0:03:01]}  Bh7 {[%clk 0:02:51]} 6. Qd2 {[%clk 0:03:01]}  a6 {[%clk 0:02:39]} 7. h4 {[%clk 0:03:01]}  e6 {[%clk 0:02:34]} 8. e3 {[%clk 0:03:00]}  c5 {[%clk 0:02:33]} 9. Nh3 {[%clk 0:02:53]}  Nc6 {[%clk 0:02:31]} 10. Bg3 {[%clk 0:02:51]}  Bd6 {[%clk 0:02:30]} 11. Bxd6 {[%clk 0:02:51]}  Qxd6 {[%clk 0:02:30]} 12. Nf4 {[%clk 0:02:52]}  g5 {[%clk 0:02:19]} 13. hxg5 {[%clk 0:02:47]}  hxg5 {[%clk 0:02:19]} 14. Nfe2 {[%clk 0:02:46]}  O-O-O {[%clk 0:02:17]} 15. O-O-O {[%clk 0:02:45]}  Bg6 {[%clk 0:02:09]} 16. Bg2 {[%clk 0:02:38]}  Kb8 {[%clk 0:02:06]} 17. dxc5 {[%clk 0:02:36]}  Qxc5 {[%clk 0:02:05]} 18. Nd4 {[%clk 0:02:37]}  Ne5 {[%clk 0:02:00]} 19. Nb3 {[%clk 0:02:26]}  Qb6 {[%clk 0:01:59]} 20. Qf2 {[%clk 0:02:10]}  Nc4 {[%clk 0:01:50]} 21. Rhe1 {[%clk 0:02:06]}  Rc8 {[%clk 0:01:38]} 22. f4 {[%clk 0:01:52]}  Nxg4 {[%clk 0:01:34]} 23. Qg3 {[%clk 0:01:51]}  Ngxe3 {[%clk 0:01:33]} 24. f5+ {[%clk 0:01:49]}  Ka8 {[%clk 0:01:20]} 25. fxg6 {[%clk 0:01:49]}  Nxd1 {[%clk 0:01:20]} 26. Rxd1 {[%clk 0:01:50]}  fxg6 {[%clk 0:01:15]} 27. Kb1 {[%clk 0:01:47]}  Qe3 {[%clk 0:01:04]} 28. Bf3 {[%clk 0:01:29]}  Nxb2 {[%clk 0:01:01]} 29. Nxd5 {[%clk 0:01:08]}  exd5 {[%clk 0:01:00]} 30. Kxb2 {[%clk 0:01:08]}  Qc3+ {[%clk 0:00:56]} 31. Ka3 {[%clk 0:01:08]}  Rh4 {[%clk 0:00:37]} 32. Rxd5 {[%clk 0:01:03]}  Rhc4 {[%clk 0:00:27]} 33. Qd6 {[%clk 0:00:48]}  Qxf3 {[%clk 0:00:21]} 34. Rxg5 {[%clk 0:00:44]}  Rxc2 {[%clk 0:00:20]} 35. Rxg6 {[%clk 0:00:41]}  Qc3 {[%clk 0:00:19]} 36. Rg4 {[%clk 0:00:27]}  Qb2+ {[%clk 0:00:18]} 37. Kb4 {[%clk 0:00:28]}  Qxa2 {[%clk 0:00:17]} 38. Qb6 {[%clk 0:00:26]}  Qb1 {[%clk 0:00:14]} 39. Rg7 {[%clk 0:00:24]}  R2c4+ {[%clk 0:00:14]} 40. Ka3 {[%clk 0:00:24]}  Rb8 {[%clk 0:00:09]} 41. Rg5 {[%clk 0:00:20]}  Rc6 {[%clk 0:00:08]} 42. Qb4 {[%clk 0:00:20]}  Qc2 {[%clk 0:00:05]} 43. Ra5 {[%clk 0:00:20]}  Qc4 {[%clk 0:00:04]} 44. Qd2 {[%clk 0:00:19]}  Rbc8 {[%clk 0:00:03]} 45. Qd7 {[%clk 0:00:18]}  Qc3 {[%clk 0:00:02]} 46. Qd5 {[%clk 0:00:17]}  R6c7 {[%clk 0:00:03]} 47. Rxa6+ {[%clk 0:00:17]}  Kb8 {[%clk 0:00:03]} 48. Ra4 {[%clk 0:00:17]}  Rc4 {[%clk 0:00:03]} 49. Qd6+ {[%clk 0:00:16]}  R8c7 {[%clk 0:00:02]} 50. Ra5 {[%clk 0:00:16]}  Qc2 {[%clk 0:00:01]} 51. Rb5 {[%clk 0:00:14]}  Rc3 {[%clk 0:00:01]} 52. Qd8+ {[%clk 0:00:14]}  Rc8 {[%clk 0:00:01]} 53. Qd6+ {[%clk 0:00:14]}  R3c7 {[%clk 0:00:01]} 54. Ra5 {[%clk 0:00:13]}  Qc6 {[%clk 0:00:02]} 55. Qd4 {[%clk 0:00:13]}  Rd7 {[%clk 0:00:02]} 56. Qa7+ {[%clk 0:00:13]}  Kc7 {[%clk 0:00:02]} 57. Rc5 {[%clk 0:00:13]}  Qxc5+ {[%clk 0:00:03]} 58. Qxc5+ {[%clk 0:00:14]}  Kb8 {[%clk 0:00:04]} 59. Qe5+ {[%clk 0:00:14]}  Rdc7 {[%clk 0:00:04]} 60. Nc5 {[%clk 0:00:14]}  Ka7 {[%clk 0:00:04]} 61. Na4 {[%clk 0:00:14]}  Rc6 {[%clk 0:00:05]} 62. Qd4+ {[%clk 0:00:13]}  Kb8 {[%clk 0:00:05]} 63. Kb4 {[%clk 0:00:14]}  Ra6 {[%clk 0:00:05]} 64. Qe5+ {[%clk 0:00:13]}  Ka8 {[%clk 0:00:05]} 65. Kb5 {[%clk 0:00:12]}  Ka7 {[%clk 0:00:05]} 66. Qd4+ {[%clk 0:00:12]}  Kb8 {[%clk 0:00:05]} 67. Nb6 {[%clk 0:00:12]}  Rh8 {[%clk 0:00:03]} 68. Qxh8+ {[%clk 0:00:12]} 1-0


[Site "https://www.chess.com"]

[Event "Titled Tuesday Blitz July 11 Early 2023"]
[White "Niekras, Dawid"]
[Black "Kopczynski, Michal"]
[WhiteFideId "1160451"]
[BlackFideId "1124200"]
[WhiteElo "2594"]
[BlackElo "2471"]
[Result "1-0"]
[Round "11"]
[TimeControl "180+2"]
[Date "2023.07.11"]
[WhiteClock "0:00:04"]
[BlackClock "0:00:00"]
[Board "75"]

1. e4 {[%clk 0:03:00]}  c5 {[%clk 0:02:59]} 2. Nf3 {[%clk 0:03:00]}  d6 {[%clk 0:03:00]} 3. Nc3 {[%clk 0:03:00]}  Nf6 {[%clk 0:02:59]} 4. e5 {[%clk 0:03:01]}  dxe5 {[%clk 0:02:59]} 5. Nxe5 {[%clk 0:03:02]}  g6 {[%clk 0:02:58]} 6. Bc4 {[%clk 0:03:01]}  e6 {[%clk 0:02:57]} 7. Bb5+ {[%clk 0:03:02]}  Bd7 {[%clk 0:02:56]} 8. Nxd7 {[%clk 0:02:59]}  Nbxd7 {[%clk 0:02:57]} 9. d4 {[%clk 0:02:57]}  a6 {[%clk 0:02:51]} 10. Be2 {[%clk 0:02:47]}  cxd4 {[%clk 0:02:43]} 11. Qxd4 {[%clk 0:02:48]}  Bg7 {[%clk 0:02:42]} 12. Qb4 {[%clk 0:02:42]}  Qb6 {[%clk 0:02:35]} 13. Qxb6 {[%clk 0:02:41]}  Nxb6 {[%clk 0:02:36]} 14. Bf3 {[%clk 0:02:41]}  Rb8 {[%clk 0:02:32]} 15. Bf4 {[%clk 0:02:39]}  O-O {[%clk 0:02:20]} 16. Bxb8 {[%clk 0:02:39]}  Rxb8 {[%clk 0:02:21]} 17. O-O-O {[%clk 0:02:06]}  Nc4 {[%clk 0:02:18]} 18. b3 {[%clk 0:01:19]}  Ne5 {[%clk 0:02:14]} 19. Ne4 {[%clk 0:01:13]}  Nd5 {[%clk 0:02:13]} 20. c4 {[%clk 0:00:41]}  Nb4 {[%clk 0:02:00]} 21. Kb1 {[%clk 0:00:41]}  Nxf3 {[%clk 0:01:34]} 22. gxf3 {[%clk 0:00:42]}  Nc6 {[%clk 0:01:34]} 23. Rd7 {[%clk 0:00:20]}  Ne5 {[%clk 0:01:28]} 24. Rc7 {[%clk 0:00:20]}  Nxf3 {[%clk 0:01:18]} 25. Nc5 {[%clk 0:00:17]}  b6 {[%clk 0:01:00]} 26. Nxa6 {[%clk 0:00:10]}  Rd8 {[%clk 0:00:55]} 27. Nb4 {[%clk 0:00:03]}  Nd2+ {[%clk 0:00:50]} 28. Kc2 {[%clk 0:00:03]}  Ne4 {[%clk 0:00:50]} 29. Nd3 {[%clk 0:00:03]}  Bd4 {[%clk 0:00:45]} 30. Re1 {[%clk 0:00:02]}  Nxf2 {[%clk 0:00:41]} 31. Nxf2 {[%clk 0:00:03]}  Bxf2 {[%clk 0:00:41]} 32. Re2 {[%clk 0:00:04]}  Bc5 {[%clk 0:00:40]} 33. Rd2 {[%clk 0:00:02]}  Bd4 {[%clk 0:00:34]} 34. Rb7 {[%clk 0:00:02]}  e5 {[%clk 0:00:33]} 35. b4 {[%clk 0:00:02]}  Rc8 {[%clk 0:00:32]} 36. Kb3 {[%clk 0:00:02]}  f5 {[%clk 0:00:32]} 37. a4 {[%clk 0:00:02]}  f4 {[%clk 0:00:32]} 38. Rd3 {[%clk 0:00:01]}  g5 {[%clk 0:00:30]} 39. a5 {[%clk 0:00:02]}  bxa5 {[%clk 0:00:30]} 40. bxa5 {[%clk 0:00:02]}  g4 {[%clk 0:00:30]} 41. a6 {[%clk 0:00:03]}  f3 {[%clk 0:00:30]} 42. a7 {[%clk 0:00:03]}  f2 {[%clk 0:00:23]} 43. Rd1 {[%clk 0:00:03]}  Bxa7 {[%clk 0:00:00]} 44. Rxa7 {[%clk 0:00:04]} 1-0


[Site "https://www.chess.com"]